fUSD/lending_fUSD_20251204
["ID","MTS","AMOUNT","RATE_DAILY","PERIOD"]
[396250630,1764879045832,-3281.723842,0.000364,31]
[396250633,1764879045848,-169.137384,0.000364,31]
[396250635,1764879045863,-199.0,0.00036438,8]
[396250638,1764879045879,-5000.0,0.00036473,2]
[396250642,1764879045903,-151.0,0.00036473,31]
[396250644,1764879045919,-151.0,0.00036473,31]
[396250647,1764879045935,-151.0,0.00036473,31]
[396250649,1764879045950,-151.0,0.00036473,31]
[396250650,1764879045966,-151.0,0.00036473,31]
[396250651,1764879045982,-151.0,0.00036473,31]
[396250652,1764879045997,-5000.0,0.00036477,2]
[396250653,1764879046013,-4450.67,0.00036497,2]
[396250654,1764879046028,-659.46,0.000365,2]
[396250655,1764879046043,-911.18,0.000365,60]
[396250656,1764879046059,-5000.0,0.00036519,2]
[396250657,1764879046073,-5000.0,0.0003653,2]
[396250658,1764879046088,-5000.0,0.00036539,2]
[396250659,1764879046104,-1000.0,0.00036544,7]
[396250660,1764879046121,-5000.0,0.00036578,2]
[396250661,1764879046137,-5000.0,0.00036579,2]
[396250662,1764879046152,-6423.2609,0.00036639,2]
[396250663,1764879046168,-5000.0,0.00036639,2]
[396250664,1764879046184,-25000.0,0.0003665,2]
[396250665,1764879046200,-5000.0,0.00036654,2]
[396250666,1764879046216,-500.0,0.00036659,120]
[396250667,1764879046232,-5000.0,0.00036677,2]
[396250668,1764879046248,-554.62193613,0.00036678,2]
[396250669,1764879046264,-5000.0,0.00036681,2]
[396250670,1764879046280,-5000.0,0.00036682,2]
[396250671,1764879046296,-5000.0,0.00036698,2]
[396250672,1764879046312,-25000.0,0.00036701,2]
[396250673,1764879046328,-13483.2,0.00036722,2]
[396250674,1764879046350,-650.61,0.00036729,2]
[396250675,1764879046366,-151.0,0.00036736,14]
[396250676,1764879046382,-152.0,0.00036736,5]
[396250677,1764879046397,-151.835043,0.00036739,31]
[396250678,1764879046414,-176.883259,0.00036739,30]
[396250679,1764879046431,-500.0,0.00036739,30]
[396250680,1764879046447,-500.0,0.00036739,30]
[396250681,1764879046464,-500.0,0.00036739,30]
[396250682,1764879046480,-500.0,0.00036739,30]
[396250683,1764879046497,-500.0,0.00036739,30]
[396250684,1764879046513,-500.0,0.00036739,30]
[396250685,1764879046529,-500.0,0.00036739,30]
[396250686,1764879046546,-500.0,0.00036739,30]
[396250687,1764879046562,-700.0,0.00036739,30]
[396250688,1764879046578,-1000.0,0.00036739,30]
[396250689,1764879046594,-1000.0,0.00036739,30]
[396250690,1764879046609,-1000.0,0.00036739,30]
[396250691,1764879046625,-1000.0,0.00036739,30]
[396250692,1764879046643,-1000.0,0.00036739,30]
[396250693,1764879046660,-1000.0,0.00036739,30]
[396250694,1764879046672,-1000.0,0.00036739,30]
[396250695,1764879046683,-1000.0,0.00036739,30]
[396250696,1764879046692,-1000.0,0.00036739,30]
[396250697,1764879046702,-1000.0,0.00036739,30]
[396250698,1764879046712,-500.0,0.00036739,30]
[396250699,1764879046722,-1000.0,0.00036739,30]
[396250700,1764879046731,-1000.0,0.00036739,30]
[396250701,1764879046742,-1000.0,0.00036739,30]
[396250702,1764879046751,-1000.0,0.00036739,30]
[396250703,1764879047060,-1000.0,0.00036739,30]
[396250704,1764879047092,-1000.0,0.00036739,30]
[396250705,1764879047119,-500.0,0.00036739,30]
[396250706,1764879047130,-280.60813609,0.00036739,30]
[396250707,1764879047139,-771.08211356,0.00036739,30]
[396250708,1764879047150,-1000.0,0.00036739,30]
[396250709,1764879047159,-2600.0,0.00036739,30]
[396250710,1764879047169,-1000.0,0.00036739,30]
[396250711,1764879047179,-2000.0,0.00036739,30]
[396250712,1764879047188,-500.0,0.00036739,30]
[396250713,1764879047198,-1000.0,0.00036739,30]
[396250714,1764879047207,-2600.0,0.00036739,30]
[396250715,1764879047217,-2000.0,0.00036739,30]
[396250716,1764879047227,-1000.0,0.00036739,30]
[396250717,1764879047236,-2600.0,0.00036739,30]
[396250718,1764879047246,-2000.0,0.00036739,30]
[396250719,1764879047256,-1000.0,0.00036739,30]
[396250720,1764879047265,-2600.0,0.00036739,30]
[396250721,1764879047275,-2000.0,0.00036739,30]
[396250722,1764879047285,-2600.0,0.00036739,30]
[396250723,1764879047295,-1000.0,0.00036739,30]
[396250724,1764879047304,-2000.0,0.00036739,30]
[396250725,1764879047314,-2600.0,0.00036739,30]
[396250726,1764879047324,-1000.0,0.00036739,30]
[396250727,1764879047333,-2000.0,0.00036739,30]
[396250728,1764879047343,-2600.0,0.00036739,30]
[396250729,1764879047352,-1000.0,0.00036739,30]
[396250730,1764879047362,-2000.0,0.00036739,30]
[396250731,1764879047372,-2600.0,0.00036739,30]
[396250732,1764879047381,-1000.0,0.00036739,30]
[396250733,1764879047391,-2000.0,0.00036739,30]
[396250734,1764879047402,-2600.0,0.00036739,30]
[396250735,1764879047413,-700.0,0.00036739,30]
[396250736,1764879047423,-1000.0,0.00036739,30]
[396250737,1764879047433,-500.0,0.00036739,30]
[396250738,1764879047443,-500.0,0.00036739,30]
[396250739,1764879047453,-2000.0,0.00036739,30]
[396250740,1764879047463,-2600.0,0.00036739,30]
[396250741,1764879047474,-700.0,0.00036739,30]
[396250742,1764879047484,-1502.85708468,0.00036739,30]
[396250743,1764879047494,-2000.0,0.00036739,30]
[396250744,1764879047504,-2600.0,0.00036739,30]
[396250745,1764879047514,-700.0,0.00036739,30]
[396250746,1764879047525,-800.0,0.00036739,30]
[396250747,1764879047535,-500.0,0.00036739,30]
[396250748,1764879047545,-2000.0,0.00036739,30]
[396250749,1764879047558,-2600.0,0.00036739,30]
[396250750,1764879047568,-700.0,0.00036739,30]
[396250751,1764879047578,-800.0,0.00036739,30]
[396250752,1764879047588,-500.0,0.00036739,30]
[396250753,1764879047598,-2000.0,0.00036739,30]
[396250754,1764879047608,-700.0,0.00036739,30]
[396250755,1764879047618,-2600.0,0.00036739,30]
[396250756,1764879047628,-663.58564731,0.00036739,30]
[396250757,1764879047638,-2000.0,0.00036739,30]
[396250758,1764879047649,-700.0,0.00036739,30]
[396250759,1764879047659,-2600.0,0.00036739,30]
[396250760,1764879047669,-2000.0,0.00036739,30]
[396250761,1764879047679,-800.0,0.00036739,30]
[396250762,1764879047691,-700.0,0.00036739,30]
[396250763,1764879047701,-2600.0,0.00036739,30]
[396250764,1764879047710,-800.0,0.00036739,30]
[396250765,1764879047720,-2000.0,0.00036739,30]
[396250766,1764879047730,-700.0,0.00036739,30]
[396250767,1764879047740,-2600.0,0.00036739,30]
[396250768,1764879047750,-800.0,0.00036739,30]
[396250769,1764879047759,-2000.0,0.00036739,30]
[396250770,1764879047769,-700.0,0.00036739,30]
[396250771,1764879047779,-2600.0,0.00036739,30]
[396250772,1764879047788,-500.0,0.00036739,30]
[396250773,1764879047798,-800.0,0.00036739,30]
[396250774,1764879047808,-700.0,0.00036739,30]
[396250775,1764879047818,-2000.0,0.00036739,30]
[396250776,1764879047828,-500.0,0.00036739,30]
[396250777,1764879047838,-2600.0,0.00036739,30]
[396250778,1764879047848,-800.0,0.00036739,30]
[396250779,1764879047858,-700.0,0.00036739,30]
[396250780,1764879047868,-2000.0,0.00036739,30]
[396250781,1764879047878,-500.0,0.00036739,30]
[396250782,1764879047888,-2600.0,0.00036739,30]
[396250783,1764879047897,-800.0,0.00036739,30]
[396250784,1764879047907,-700.0,0.00036739,30]
[396250785,1764879047916,-2000.0,0.00036739,30]
[396250786,1764879047926,-500.0,0.00036739,30]
[396250787,1764879047935,-2600.0,0.00036739,30]
[396250788,1764879047945,-800.0,0.00036739,30]
[396250789,1764879047954,-700.0,0.00036739,30]
[396250790,1764879047964,-2000.0,0.00036739,30]
[396250791,1764879047973,-500.0,0.00036739,30]
[396250792,1764879047982,-2600.0,0.00036739,30]
[396250793,1764879047992,-800.0,0.00036739,30]
[396250794,1764879048001,-700.0,0.00036739,30]
[396250795,1764879048010,-2000.0,0.00036739,30]
[396250796,1764879048019,-500.0,0.00036739,30]
[396250797,1764879048029,-2600.0,0.00036739,30]
[396250798,1764879048039,-500.0,0.00036739,30]
[396250799,1764879048049,-800.0,0.00036739,30]
[396250800,1764879048059,-700.0,0.00036739,30]
[396250801,1764879048068,-500.0,0.00036739,30]
[396250802,1764879048078,-2000.0,0.00036739,30]
[396250803,1764879048088,-2600.0,0.00036739,30]
[396250804,1764879048098,-800.0,0.00036739,30]
[396250805,1764879048108,-500.0,0.00036739,30]
[396250806,1764879048117,-802.3781414,0.00036739,30]
[396250807,1764879048127,-500.0,0.00036739,30]
[396250808,1764879048136,-2000.0,0.00036739,30]
[396250809,1764879048146,-2600.0,0.00036739,30]
[396250810,1764879048155,-800.0,0.00036739,30]
[396250811,1764879048165,-504.67126544,0.00036739,30]
[396250812,1764879048174,-700.0,0.00036739,30]
[396250813,1764879048185,-500.0,0.00036739,30]
[396250814,1764879048194,-2000.0,0.00036739,30]
[396250815,1764879048204,-2600.0,0.00036739,30]
[396250816,1764879048214,-800.0,0.00036739,30]
[396250817,1764879048224,-700.0,0.00036739,30]
[396250818,1764879048234,-922.48288567,0.00036739,30]
[396250819,1764879048243,-2000.0,0.00036739,30]
[396250820,1764879048253,-2600.0,0.00036739,30]
[396250821,1764879048263,-800.0,0.00036739,30]
[396250822,1764879048272,-500.0,0.00036739,30]
[396250823,1764879048282,-700.0,0.00036739,30]
[396250824,1764879048291,-2600.0,0.00036739,30]
[396250825,1764879048301,-800.0,0.00036739,30]
[396250826,1764879048311,-2000.0,0.00036739,30]
[396250827,1764879048320,-700.0,0.00036739,30]
[396250828,1764879048330,-500.0,0.00036739,30]
[396250829,1764879048340,-2600.0,0.00036739,30]
[396250830,1764879048349,-800.0,0.00036739,30]
[396250831,1764879048358,-700.0,0.00036739,30]
[396250832,1764879048368,-2000.0,0.00036739,30]
[396250833,1764879048377,-3484.70760714,0.00036739,30]
[396250834,1764879048387,-800.0,0.00036739,30]
[396250835,1764879048396,-700.0,0.00036739,30]
[396250836,1764879048407,-800.0,0.00036739,30]
[396250837,1764879048416,-700.0,0.00036739,30]
[396250838,1764879048426,-600.0,0.00036739,30]
[396250839,1764879048436,-2000.0,0.00036739,30]
[396250840,1764879048446,-800.0,0.00036739,30]
[396250841,1764879048463,-700.0,0.00036739,30]
[396250842,1764879048474,-500.0,0.00036739,30]
[396250843,1764879048485,-600.0,0.00036739,30]
[396250844,1764879048495,-2746.61533267,0.00036739,30]
[396250845,1764879048505,-800.0,0.00036739,30]
[396250846,1764879048515,-700.0,0.00036739,30]
[396250847,1764879048526,-600.0,0.00036739,30]
[396250848,1764879048536,-700.0,0.00036739,30]
[396250849,1764879048546,-600.0,0.00036739,30]
[396250850,1764879048556,-740.26903124,0.00036739,30]
[396250851,1764879048569,-600.0,0.00036739,30]
[396250852,1764879048579,-600.0,0.00036739,30]
[396250853,1764879048589,-499.4701768,0.00036739,30]
[396250854,1764879048604,-600.0,0.00036739,30]
[396250855,1764879048621,-600.0,0.00036739,30]
[396250856,1764879048631,-600.0,0.00036739,30]
[396250857,1764879048643,-600.0,0.00036739,30]
[396250858,1764879048652,-600.0,0.00036739,30]
[396250859,1764879048663,-500.0,0.00036739,30]
[396250860,1764879048673,-600.0,0.00036739,30]
[396250861,1764879048683,-600.0,0.00036739,30]
[396250862,1764879048693,-600.0,0.00036739,30]
[396250863,1764879048703,-500.0,0.00036739,30]
[396250864,1764879048712,-600.0,0.00036739,30]
[396250865,1764879048722,-541.46265781,0.00036739,30]
[396250866,1764879048732,-800.0,0.00036739,30]
[396250867,1764879048741,-600.0,0.00036739,30]
[396250868,1764879048751,-800.0,0.00036739,30]
[396250869,1764879048760,-600.0,0.00036739,30]
[396250870,1764879048770,-800.0,0.00036739,30]
[396250871,1764879048779,-600.0,0.00036739,30]
[396250872,1764879048789,-800.0,0.00036739,30]
[396250873,1764879048799,-600.0,0.00036739,30]
[396250874,1764879048808,-800.0,0.00036739,30]
[396250875,1764879048818,-600.0,0.00036739,30]
[396250876,1764879048828,-800.0,0.00036739,30]
[396250877,1764879048838,-600.0,0.00036739,30]
[396250878,1764879048847,-928.4410671,0.00036739,30]
[396250879,1764879048858,-600.0,0.00036739,30]
[396250880,1764879048868,-600.0,0.00036739,30]
[396250881,1764879048877,-600.0,0.00036739,30]
[396250882,1764879048887,-600.0,0.00036739,30]
[396250883,1764879048896,-600.0,0.00036739,30]
[396250884,1764879048905,-5000.0,0.00036758,2]
[396250885,1764879048915,-1666.42,0.00036778,2]
[396250886,1764879048924,-5000.0,0.00036782,2]
[396250887,1764879048934,-5000.0,0.00036794,2]
[396250888,1764879048945,-25000.0,0.00036794,2]
[396250889,1764879048955,-151.0,0.00036794,31]
[396250890,1764879048964,-607.168677,0.00036794,31]
[396250891,1764879048975,-151.0,0.00036794,31]
[396250892,1764879048985,-607.168677,0.00036794,31]
[396250893,1764879048996,-607.168677,0.00036794,31]
[396250894,1764879049006,-607.168677,0.00036794,31]
[396250895,1764879049016,-151.0,0.00036794,31]
[396250896,1764879049025,-151.0,0.00036794,31]
[396250897,1764879049034,-151.0,0.00036794,31]
[396250898,1764879049044,-151.0,0.00036794,31]
[396250899,1764879049053,-721.070312,0.00036794,31]
[396250900,1764879049063,-721.070312,0.00036794,31]
[396250901,1764879049072,-721.070312,0.00036794,31]
[396250902,1764879049082,-721.070312,0.00036794,31]
[396250903,1764879049092,-1596.15402295,0.000368,2]
[396250904,1764879049103,-1937.33751179,0.000368,2]
[396250905,1764879049117,-1167.87381235,0.000368,120]
[396250906,1764879049133,-5000.0,0.00036802,2]
[396250907,1764879049143,-25000.0,0.00036806,2]
[396250908,1764879049153,-151.0,0.00036806,31]
[396250909,1764879049163,-152.092223,0.00036806,31]
[396250910,1764879049172,-151.0,0.00036806,31]
[396250911,1764879049182,-151.0,0.00036806,31]
[396250912,1764879049192,-151.0,0.00036806,31]
[396250913,1764879049201,-151.0,0.00036806,31]
[396250914,1764879049211,-3281.723842,0.00036806,31]
[396250915,1764879049220,-3281.723842,0.00036806,31]
[396250916,1764879049230,-269.65684,0.00036806,31]
[396250917,1764879049240,-3281.723842,0.00036806,31]
[396250918,1764879049249,-3281.723842,0.00036806,31]
[396250919,1764879049259,-2545.96,0.00036807,2]
[396250920,1764879049268,-1000.0,0.00036818,7]
[396250921,1764879049279,-25000.0,0.00036848,2]
[396250922,1764879049288,-151.0,0.00036848,31]
[396250923,1764879049297,-151.0,0.00036848,31]
[396250924,1764879049307,-151.0,0.00036848,15]
[396250925,1764879049317,-151.0,0.00036848,15]
[396250926,1764879049326,-151.0,0.00036848,15]
[396250927,1764879049336,-171.014426,0.00036848,15]
[396250928,1764879049346,-151.0,0.00036848,31]
[396250929,1764879049355,-151.0,0.00036848,28]
[396250930,1764879049365,-5000.0,0.00036858,2]
[396250931,1764879049375,-1000.0,0.00036874,2]
[396250932,1764879049384,-471.5868,0.00036888,7]
[396250933,1764879049394,-267.46074303,0.00036889,30]
[396250934,1764879049403,-14007.68949578,0.0003691,2]
[396250935,1764879049413,-5000.0,0.00036919,2]
[396250936,1764879049423,-5000.0,0.00036958,2]
[396250937,1764879049433,-199.0,0.00036986,9]
[396250938,1764879049443,-217.07,0.00036986,30]
[396250939,1764879049453,-5000.0,0.00036993,2]
[396250940,1764879049462,-5000.0,0.00037,2]
[396250941,1764879049472,-164.17095529,0.00037,2]
[396250942,1764879049482,-163.0,0.00037,120]
[396250943,1764879049492,-1492.0,0.00037,2]
[396250944,1764879049502,-150.0,0.00037,15]
[396250945,1764879049511,-1000.0,0.00037,7]
[396250946,1764879049521,-1000.0,0.00037092,7]
[396250947,1764879049530,-180.17,0.000371,14]
[396250948,1764879049539,-183.20267818,0.000372,120]
[396250949,1764879049550,-183.20267817,0.000372,120]
[396250950,1764879049562,-183.20267817,0.000372,120]
[396250951,1764879049571,-183.20267817,0.000372,120]
[396250952,1764879049729,-1000.0,0.00037366,7]
[396250953,1764879049738,-312.29,0.000374,14]
[396250954,1764879049748,-554.62193607,0.00037521,2]
[396250955,1764879049757,-199.0,0.00037534,10]
[396250956,1764879049767,-4294.42277614,0.0003759,2]
[396250957,1764879049776,-1000.0,0.0003764,7]
[396250958,1764879049786,-365.79399057,0.00037641,30]
[396250959,1764879049795,-593.14571256,0.00037641,30]
[396250960,1764879049804,-365.79399057,0.00037641,30]
[396250961,1764879049815,-593.14571256,0.00037641,30]
[396250962,1764879049827,-593.14571256,0.00037641,30]
[396250963,1764879049836,-320.21867361,0.00037641,30]
[396250964,1764879049845,-341.04700964,0.00037641,30]
[396250965,1764879049855,-593.14571256,0.00037641,30]
[396250966,1764879049864,-365.79399057,0.00037641,30]
[396250967,1764879049874,-593.14571256,0.00037641,30]
[396250968,1764879049884,-365.79399057,0.00037641,30]
[396250969,1764879049893,-300.42301382,0.00037641,30]
[396250970,1764879049902,-593.14571256,0.00037641,30]
[396250971,1764879049912,-365.79399057,0.00037641,30]
[396250972,1764879049922,-407.54364839,0.00037641,30]
[396250973,1764879049931,-593.14571256,0.00037641,30]
[396250974,1764879049941,-593.14571256,0.00037641,30]
[396250975,1764879049951,-500.0,0.00037644,14]
[396250976,1764879049960,-1271.24043025,0.00037753,120]
[396250977,1764879049969,-170.08,0.00037808,2]
[396250978,1764879049979,-1000.0,0.00037874,2]
[396250979,1764879049990,-200.24745758,0.0003788,2]
[396250980,1764879050000,-152.0,0.00037887,6]
[396250981,1764879050009,-1000.0,0.00037914,7]
[396250982,1764879050019,-151.0,0.00037997,14]
[396250983,1764879050031,-48105.7486195,0.00038,48]
[396250984,1764879050496,-656.01449307,0.00038,48]
[396250985,1764879050507,-1238.23688743,0.00038,48]
[396250986,1764879050517,-1000.0,0.00038,25]
[396250987,1764879050527,-1007.0,0.00038,25]
[396250988,1764879050537,-1000.0,0.00038,12]
[396250989,1764879050547,-200.0,0.00038,120]
[396250990,1764879050556,-3000.0,0.00038,60]
[396250991,1764879050569,-8904.92513306,0.00038,2]
[396250992,1764879050635,-737.99884669,0.00038,2]
[396250993,1764879050646,-1434.6,0.00038,2]
[396250994,1764879050656,-153024.68989124,0.00038,2]
[396250995,1764879050663,-5584.57549766,0.00038,47]
[396250996,1764879050726,-318.1374865,0.00038,47]
[396250997,1764879052798,-500.0,0.00027492,2]
[396250998,1764879052809,-411.30039,0.00027492,2]
[396251000,1764879056832,-88.69961,0.00027492,2]
[396251001,1764879056843,-406.71530819,0.00027492,2]
[396251002,1764879056853,-44097.28701584,0.00038,47]
[396251003,1764879056863,-31000.0,0.00038,45]
[396251004,1764879056874,-200.0,0.00038,17]
[396251005,1764879056885,-607.168677,0.00038,31]
[396251006,1764879056894,-607.168677,0.00038,31]
[396251007,1764879056904,-607.168677,0.00038,31]
[396251008,1764879056915,-607.168677,0.00038,31]
[396251009,1764879056925,-151.0,0.00038,31]
[396251010,1764879056934,-151.0,0.00038,31]
[396251011,1764879056944,-151.0,0.00038,31]
[396251012,1764879056954,-151.0,0.00038,31]
[396251013,1764879056963,-721.070312,0.00038,31]
[396251014,1764879056973,-721.070312,0.00038,31]
[396251015,1764879056983,-721.070312,0.00038,31]
[396251016,1764879056992,-721.070312,0.00038,31]
[396251017,1764879057002,-199.0,0.00038082,11]
[396251018,1764879057013,-1000.0,0.00038188,7]
[396251019,1764879057023,-662.54,0.00038205,120]
[396251020,1764879057033,-473.0,0.00038209,14]
[396251021,1764879057043,-160.0124984,0.000383,120]
[396251022,1764879057053,-13667.44,0.00038356,10]
[396251023,1764879057063,-1000.0,0.00038356,5]
[396251024,1764879057073,-554.62193607,0.00038364,2]
[396251025,1764879057085,-180.17,0.000384,14]
[396251026,1764879057095,-180.17,0.000384,14]
[396251027,1764879057104,-1000.0,0.00038462,7]
[396251028,1764879057114,-473.0,0.00038483,14]
[396251029,1764879057123,-10000.0,0.0003862,7]
[396251030,1764879057134,-257.91778498,0.00038628,30]
[396251031,1764879057143,-199.0,0.0003863,12]
[396251032,1764879057153,-1000.0,0.00038736,7]
[396251033,1764879057163,-473.0,0.00038757,14]
[396251034,1764879057172,-977.21390114,0.00038767,5]
[396251035,1764879057183,-2002.71151159,0.00038874,2]
[396251036,1764879057192,-2414.86832085,0.00038887,2]
[396251037,1764879057202,-4244.2815,0.00038888,30]
[396251038,1764879057211,-151.0,0.00038888,120]
[396251039,1764879057221,-151.0,0.00038888,120]
[396251040,1764879057419,-151.0,0.00038888,120]
[396251041,1764879057430,-151.0,0.00038888,120]
[396251042,1764879057439,-3281.723842,0.00038888,120]
[396251043,1764879057449,-3281.723842,0.00038888,120]
[396251044,1764879057459,-3281.723842,0.00038888,120]
[396251045,1764879057468,-3281.723842,0.00038888,120]
[396251046,1764879057478,-300.0,0.00038899,10]
[396251047,1764879057488,-19286.72372699,0.000389,30]
[396251048,1764879057497,-302.85995797,0.000389,120]
[396251049,1764879057507,-500.0,0.000389,30]
[396251050,1764879057516,-500.0,0.000389,30]
[396251051,1764879057526,-500.0,0.000389,30]
[396251052,1764879057537,-500.0,0.000389,30]
[396251053,1764879057547,-500.0,0.000389,30]
[396251054,1764879057556,-500.0,0.000389,30]
[396251055,1764879057570,-500.0,0.000389,30]
[396251056,1764879057579,-500.0,0.000389,30]
[396251057,1764879057589,-500.0,0.000389,30]
[396251058,1764879057599,-151.0,0.000389,28]
[396251059,1764879057610,-151.0,0.00038904,120]
[396251060,1764879057619,-151.0,0.00038904,120]
[396251061,1764879057628,-151.0,0.00038904,15]
[396251062,1764879057639,-151.0,0.00038904,15]
[396251063,1764879057649,-151.0,0.00038904,15]
[396251064,1764879057659,-151.0,0.00038904,120]
[396251065,1764879057668,-151.0,0.00038904,50]
[396251066,1764879057678,-151.0,0.00038904,50]
[396251067,1764879057688,-151.0,0.00038904,50]
[396251068,1764879057697,-151.0,0.00038904,50]
[396251069,1764879057707,-151.0,0.00038904,50]
[396251070,1764879057716,-151.0,0.00038997,14]
[396251071,1764879057726,-71326.36037913,0.00039,10]
[396251072,1764879057738,-1584.28367893,0.00039,120]
[396251073,1764879057747,-182482.18752136,0.00039,2]
[396251074,1764879057757,-35725.15656572,0.00039,10]
[396251075,1764879057766,-255.02918914,0.00039,2]
[396251076,1764879057775,-6124.04,0.00039,14]
[396251077,1764879057784,-506.0,0.00039,2]
[396251078,1764879057794,-1000.0,0.0003901,7]
[396251079,1764879057803,-473.0,0.00039031,14]
[396251080,1764879057812,-152.0,0.00039037,7]
[396251081,1764879057823,-500.0,0.000391,120]
[396251082,1764879057833,-500.0,0.000391,120]
[396251083,1764879057842,-982.65036016,0.00039105,120]
[396251084,1764879057852,-199.0,0.00039178,13]
[396251085,1764879057862,-500.0,0.00039178,120]
[396251086,1764879057871,-500.0,0.00039189,120]
[396251087,1764879057881,-500.0,0.000392,120]
[396251088,1764879057890,-554.62193607,0.00039207,2]
[396251089,1764879057900,-500.0,0.00039212,120]
[396251090,1764879057910,-500.0,0.00039223,120]
[396251091,1764879057919,-500.0,0.00039234,120]
[396251092,1764879057930,-500.0,0.00039245,120]
[396251093,1764879057939,-909.0,0.00039247,2]
[396251094,1764879057949,-500.0,0.00039256,120]
[396251095,1764879057959,-500.0,0.00039268,120]
[396251096,1764879057969,-667.967,0.00039268,54]
[396251097,1764879057980,-500.0,0.00039279,120]
[396251098,1764879057989,-1138.45616676,0.00039284,2]
[396251099,1764879057999,-1000.0,0.00039284,7]
[396251100,1764879058009,-500.0,0.00039288,14]
[396251101,1764879058019,-500.0,0.0003929,120]
[396251102,1764879058029,-500.0,0.00039301,120]
[396251103,1764879058039,-473.0,0.00039305,14]
[396251104,1764879058048,-500.0,0.00039312,120]
[396251105,1764879058058,-500.0,0.00039323,120]
[396251106,1764879058068,-500.0,0.00039335,120]
[396251107,1764879058078,-500.0,0.00039346,120]
[396251108,1764879058088,-500.0,0.00039357,120]
[396251109,1764879058097,-500.0,0.00039368,120]
[396251110,1764879058107,-500.0,0.00039379,120]
[396251111,1764879058116,-500.0,0.00039391,120]
[396251112,1764879058126,-5367.58,0.000394,30]
[396251113,1764879058136,-500.0,0.00039402,120]
[396251114,1764879058146,-500.0,0.00039413,120]
[396251115,1764879058156,-500.0,0.00039424,120]
[396251116,1764879058166,-500.0,0.00039435,120]
[396251117,1764879058176,-500.0,0.00039446,120]
[396251118,1764879058186,-500.0,0.00039458,120]
[396251119,1764879058196,-500.0,0.00039469,120]
[396251120,1764879058206,-500.0,0.0003948,120]
[396251121,1764879058215,-500.0,0.00039491,120]
[396251122,1764879058225,-500.0,0.00039502,120]
[396251123,1764879058236,-500.0,0.00039514,120]
[396251124,1764879058247,-500.0,0.00039525,120]
[396251125,1764879058256,-500.0,0.00039536,120]
[396251126,1764879058267,-500.0,0.00039547,120]
[396251127,1764879058276,-1000.0,0.00039558,7]
[396251128,1764879058286,-500.0,0.00039558,120]
[396251129,1764879058295,-500.0,0.00039569,120]
[396251130,1764879058305,-473.0,0.00039579,14]
[396251131,1764879058315,-500.0,0.00039581,120]
[396251132,1764879058325,-500.0,0.00039592,120]
[396251133,1764879058335,-6124.04,0.000396,14]
[396251134,1764879058346,-471.42906149,0.000396,120]
[396251135,1764879058356,-500.0,0.00039603,120]
[396251136,1764879058366,-500.0,0.00039614,120]
[396251137,1764879058376,-500.0,0.00039625,120]
[396251138,1764879058387,-500.0,0.00039637,120]
[396251139,1764879058397,-500.0,0.00039648,120]
[396251140,1764879058408,-409.34,0.00039654,2]
[396251141,1764879058418,-500.0,0.00039659,120]
[396251142,1764879058428,-500.0,0.0003967,120]